Cogmind - Beta 16 @@@ ROGUE MODE // 2026.01.11 @ 14:01:05 Player: Granite Result: Destroyed by Y-45 Defender with Heavy Assault Rifle Performance ------------- Evolutions (2) 1000 Regions Visited (4) 800 Robots Destroyed (32) 160 Value Destroyed (602) 602 Prototype IDs (9) 180 Alien Tech Used (0) 0 Bonus (0) 0 TOTAL SCORE: 2742 Bonus ------- None Cogmind --------- Core Integrity 0/550 Matter 263/300 Energy 100/100 System Corruption 8% Temperature Cool (9) Movement Core (50) Location -8/Storage Parts ------- > --- POWER (1) -------- (None) > --- PROPULSION (2) --- (None) > --- UTILITY (6) ------ Visual Processing Unit Hacking Suite > --- WEAPON (2) ------- (None) > --- INVENTORY (5) ---- Gravity Neutralizer Sensor Array Transport Network Coupler Authchip [Processor] Peak State ------------ > --- POWER ------------ Light Nuclear Core > --- PROPULSION ------- Hover Unit Improved Hover Unit > --- UTILITY ---------- Small Storage Unit Weight Redist. System Improved Signal Interpreter Hacking Suite > --- WEAPON ----------- Light Assault Rifle High-powered Shotgun > --- INVENTORY -------- Light Ion Engine Hover Unit Improved Signal Interpreter Terrain Scanner Transport Network Coupler ECM Suite Heavy Hammer [Rating: 20] Favorites ----------- Power Light Nuclear Core Engine Light Ion Engine Power Core Light Nuclear Core Propulsion Wheel Leg Aluminum Leg Wheel Wheel Hover Unit Hover Unit Utility Small Storage Unit Device ECM Suite Storage Small Storage Unit Processor Improved Signal Interpreter Hackware Hacking Suite Weapon Light Assault Rifle Energy Gun EM Pulse Gun Ballistic Gun Light Assault Rifle Impact Weapon Heavy Hammer Special Melee Weapon Datajack Build | -11 -10 -9 -8 -8 ------- Run | Yrd Mat Mat Mat Sto Slots Evolved 4 | . . 2 2 . Power . | . . . . . Propulsion . | . . . . . Utility 4 | . . 2 2 . Weapon . | . . . . . Parts Attached 37 | 6 13 13 4 1 Power 7 | 1 3 2 1 . Engine 6 | 1 2 2 1 . Core 1 | . 1 . . . Reactor . | . . . . . Propulsion 12 | 2 5 5 . . Treads . | . . . . . Leg 2 | 2 . . . . Wheel 3 | . 2 1 . . Hover 7 | . 3 4 . . Flight . | . . . . . Utility 9 | 1 1 4 2 1 Device 4 | . . 2 1 1 Storage 1 | 1 . . . . Processor 3 | . 1 1 1 . Hackware 1 | . . 1 . . Protection . | . . . . . Artifact . | . . . . . Weapon 9 | 2 4 2 1 . Energy Gun 1 | 1 . . . . Energy Cannon . | . . . . . Ballistic Gun 4 | 1 1 2 . . Ballistic Cannon . | . . . . . Launcher . | . . . . . Special Weapon . | . . . . . Impact Weapon 2 | . 2 . . . Slashing Weapon . | . . . . . Piercing Weapon . | . . . . . Special Melee Weapon 2 | . 1 . 1 . Unidentified Prototypes 2 | . . . 1 1 Parts Lost 17 | . 6 5 . 6 Power 3 | . 2 . . 1 Propulsion 8 | . 3 3 . 2 Utility 3 | . . . . 3 Weapon 3 | . 1 2 . . Highest Loss Streak 6 | . 5 1 . 6 To Critical Strikes . | . . . . . Average Backups 6 | 1 5 7 6 5 Power . | . . . . . Propulsion 1 | . 2 2 . . Utility 3 | . 1 4 4 4 Weapon 1 | 1 1 1 1 1 Tool/Special . | . . . . . Unused Backups 11 | . 3 3 1 4 Power 1 | . . . 1 . Propulsion 2 | . 2 . . . Utility 7 | . . 3 . 4 Weapon 1 | . 1 . . . Tool/Special . | . . . . . Average Slot Usage (%) 95 | . 95 99 94 54 Engine 4 | . 8 2 9 3 Core 6 | . 5 8 . . Leg 2 | . 9 . . . Wheel 10 | . 9 13 . . Hover 8 | . 5 8 17 6 Device 8 | . . 10 17 10 Storage 11 | . 14 11 9 5 Processor 12 | . 13 11 17 13 Hackware 8 | . . 11 9 9 Energy Gun 1 | . 4 . . . Ballistic Gun 18 | . 19 21 6 . Special Melee Weapon 1 | . . . 8 4 Peak Build Rating 20 | 6 10 20 19 16 Average Rating 14 | 4 8 17 16 11 On Entrance 9 | . 6 10 15 16 Avg Prop Armor Cover (%) . | . . . . . Naked Turns . | . . . . . Heaviest Build 16 | 11 16 16 13 12 Greatest Support 26 | 20 20 26 12 12 Greatest Overweight (x) 5 | . 5 1 1 1 Average Overweight (x) . | . . . . . Largest Inventory Capacity 8 | 8 8 8 8 8 Average Capacity 7 | 6 8 8 8 6 Most Carried 8 | 5 8 8 8 7 Average Carried 6 | 2 5 7 6 5 Final Capacity 8 | 8 8 8 8 5 Final Carried 8 | 2 8 8 7 4 Class Distribution -------------------- 55% | Scavenger-Mutant 34% | Mutant 4% | Scavenger-Assassin 4% | Scavenger-Ninja Dominant Class ---------------- Mutant | -10/Materials Scavenger-Mutant | -9/Materials Scavenger-Assassin | -8/Materials Mutant | -8/Storage Resources | -11 -10 -9 -8 -8 ----------- Run | Yrd Mat Mat Mat Sto Matter Collected 960 | 213 272 475 . . Remotely . | . . . . . Salvage Created 880 | . 346 534 . . Parts 57 | . 18 39 . . Haulers Intercepted 4 | . 2 2 . . Recyclers Shooed 1 | . . 1 . . Parts Field Recycled . | . . . . . Retrieved Matter . | . . . . . Parts Self-Destructed . | . . . . . Prevented . | . . . . . Parts Restored . | . . . . . Kills | -11 -10 -9 -8 -8 ------- Run | Yrd Mat Mat Mat Sto Combat Hostiles Destroyed 20 | . 8 12 . . Guns 20 | . 8 12 . . Classes Destroyed 9 | . 5 4 . . Worker 2 | . 2 . . . Hauler 4 | . 2 2 . . Mechanic 1 | . . 1 . . Operator 2 | . 1 1 . . Watcher 3 | . . 3 . . Swarmer 10 | . 6 4 . . Grunt 6 | . 2 4 . . Duelist 1 | . . 1 . . Sentry 3 | . . 3 . . Best Kill Streak 4 | . 4 4 . . Combat Bots Only 3 | . 3 3 . . Max Kills in Single Turn 1 | . 1 1 . . Gunslinging . | . . . . . Exploded . | . . . . . Melee . | . . . . . Uniques/NPCs Destroyed . | . . . . . Combat | -11 -10 -9 -8 -8 -------- Run | Yrd Mat Mat Mat Sto Hostile Shots Fired 230 | . 73 63 . 94 Missed 76 | . 18 16 . 42 Hits 154 | . 55 47 . 52 Melee 1 | . . . . 1 Projectile 153 | . 55 47 . 51 Critical Strikes 2 | . 1 . . 1 Damage Taken 1970 | . 567 557 . 846 Core 787 | . 118 117 . 552 Absorbed by Shields . | . . . . . Core Remaining (%) 74 | 100 52 70 . . Volleys Fired 141 | . 50 91 . . Largest 2 | . 2 2 . . Hottest 60 | . 60 45 . . Shots Fired 254 | . 73 181 . . Gun 254 | . 73 181 . . Cannon . | . . . . . Launcher . | . . . . . Special . | . . . . . Kinetic 248 | . 67 181 . . Thermal . | . . . . . Explosive . | . . . . . Electromagnetic 6 | . 6 . . . Robot Hit Streak 10 | . 10 9 . . Robot Miss Streak 6 | . 4 6 . . Penetration Max . | . . . . . Secondary Targets 1 | . 1 . . . Max Gunslinging Chain 1 | . 1 . . . Shots Hit Robots 177 | . 52 118 1 6 Core Hits 62 | . 20 38 . 4 Critical Kills 2 | . 2 . . . Critical Parts Destroyed . | . . . . . Critical Strikes 2 | . 2 . . . Destroy 1 | . 1 . . . Smash 1 | . 1 . . . Melee Attacks 10 | . 2 . 1 7 Impact 2 | . 2 . . . Slashing . | . . . . . Piercing . | . . . . . Sneak Attacks 5 | . 2 . 1 2 Combat Hostiles . | . . . . . Follow-up Attacks . | . . . . . Damage Inflicted 2085 | . 580 1416 . 89 Guns 1837 | . 421 1416 . . Cannons . | . . . . . Explosions . | . . . . . Melee 159 | . 159 . . . Ramming 89 | . . . . 89 Kinetic 1798 | . 382 1416 . . Thermal . | . . . . . Explosive . | . . . . . Electromagnetic 39 | . 39 . . . Impact 159 | . 159 . . . Slashing . | . . . . . Piercing . | . . . . . Highest Corruption 8 | . . . 2 8 Average Corruption 3 | . . . 2 4 Corruption Purged . | . . . . . Corruption Blocked . | . . . . . Effects 8 | . . . 3 5 Message Errors 3 | . . . . 3 Matter Fused 2 | . . . 2 . Parts Rejected 1 | . . . . 1 Data Loss (minor) 2 | . . . 1 1 Overload Shots . | . . . . . Overflow Damage 46 | . 46 . . . Projectiles . | . . . . . Explosions . | . . . . . Melee 46 | . 46 . . . Knockbacks 1 | . 1 . . . Impact 1 | . 1 . . . Kinetic . | . . . . . Secondary . | . . . . . Self-Inflicted Damage 41 | . . . . 41 Shots . | . . . . . Rammed 23 | . 1 . . 22 Targets Rammed 23 | . 1 . . 22 Kicked . | . . . . . Crushed . | . . . . . Highest Temperature 60 | . 60 22 . . Average Temperature 10 | . 19 4 . . Received Heat Transfer 738 | . 156 204 . 378 Siege Activations . | . . . . . Martial Activations . | . . . . . Shielding Activations . | . . . . . Robots Disrupted . | . . . . . Combat Hostiles . | . . . . . Robots Corrupted 1 | . 1 . . . Combat Hostiles . | . . . . . Parts Fried . | . . . . . Impact Corruptions 2 | . 2 . . . Robots Melted . | . . . . . Combat Hostiles . | . . . . . Parts Melted . | . . . . . Heat Transferred . | . . . . . Parts Sabotaged . | . . . . . Parts Stolen . | . . . . . Parts Stripped . | . . . . . Power Chain Reactions . | . . . . . Alert | -11 -10 -9 -8 -8 ------- Run | Yrd Mat Mat Mat Sto Maximum Alert Level . | . . . . . Low Security (%) 100 | 100 100 100 100 100 Level 1 . | . . . . . Level 2 . | . . . . . Level 3 . | . . . . . Level 4 . | . . . . . Level 5 . | . . . . . High Security . | . . . . . Max Security . | . . . . . Peak Influence 183 | . 110 183 73 175 Initial 73 | . . . 73 . Average 51 | . 45 60 21 33 Influence Increases 875 | . 284 396 . 195 Destroy 0b10 Robot/C 400 | . 160 240 . . Destroy 0b10 Robot/NC 60 | . 25 35 . . Destroy Leader 104 | . 34 70 . . Successful Hack 25 | . 5 20 . . Destroy Structure 1 | . . 1 . . Partial Spotted 45 | . . 30 . 15 Lose Combat Pursuer 240 | . 60 . . 180 Influence Decreases 710 | . 281 225 174 30 Entered New Map 104 | . . 3 101 . Time Decay 496 | . 221 172 73 30 Lost Part 110 | . 60 50 . . Squads Dispatched 6 | . . 2 . 4 Investigation 1 | . . 1 . . Extermination . | . . . . . Reinforcement 5 | . . 1 . 4 Assault . | . . . . . Garrison . | . . . . . Intercept . | . . . . . Searches Triggered . | . . . . . Construction Impeded . | . . . . . Haulers Reinforced . | . . . . . Active Scanning Responses . | . . . . . Cargo Convoy Interrupts . | . . . . . Stealth | -11 -10 -9 -8 -8 --------- Run | Yrd Mat Mat Mat Sto Distress Signals 9 | . . 5 . 4 Communications Jammed . | . . . . . Distress Signals . | . . . . . Times Spotted 100 | . 16 46 . 38 Peak Tracking Total 22 | . 4 8 . 22 Tactical Retreats 17 | . 2 10 . 5 ECM-based Alert Blocks 35 | . . 28 . 7 Traps | -11 -10 -9 -8 -8 ------- Run | Yrd Mat Mat Mat Sto Traps Triggered 2 | . 1 . 1 . Indirectly . | . . . . . Trap Hack Attempts 26 | . . . 26 . Triggered . | . . . . . Disarmed 2 | . . . 2 . Reprogrammed 3 | . . . 3 . Reused . | . . . . . Traps Extracted . | . . . . . Installed . | . . . . . Triggered . | . . . . . Machines | -11 -10 -9 -8 -8 ---------- Run | Yrd Mat Mat Mat Sto Machines Disabled . | . . . . . Max in Single Turn . | . . . . . Machines Repaired . | . . . . . Machines Dismantled . | . . . . . Machines Sabotaged . | . . . . . Overloaded Fab Kills . | . . . . . Hacking | -11 -10 -9 -8 -8 --------- Run | Yrd Mat Mat Mat Sto Machines Accessed 17 | . 7 7 1 2 Terminals 14 | . 5 6 1 2 Fabricators . | . . . . . Repair Stations . | . . . . . Recycling Units 2 | . 2 . . . Scanalyzers 1 | . . 1 . . Garrison Access . | . . . . . Total Hacks 57 | . 13 41 1 2 Successful 39 | . 7 30 . 2 Failed 17 | . 6 10 1 . Catastrophic . | . . . . . Database Lockouts 1 | . . 1 . . Manual . | . . . . . Terminals 31 | . 10 18 1 2 Fabricators . | . . . . . Repair Stations . | . . . . . Recycling Units 3 | . 3 . . . Scanalyzers 23 | . . 23 . . Garrison Access . | . . . . . Terminal Hacks 17 | . 5 10 . 2 Record 1 | . . 1 . . Prototype ID Bank 5 | . 2 3 . . Open Door 2 | . . . . 2 Branch Access Points 1 | . . 1 . . Alert Level 2 | . 1 1 . . Locate Traps 1 | . . 1 . . Dispatch Records 1 | . 1 . . . Hauler Manifests 2 | . 1 1 . . Zone Layout 2 | . . 2 . . Fabricator Hacks . | . . . . . Repair Station Hacks . | . . . . . Recycling Unit Hacks 2 | . 2 . . . Report Inventory 2 | . 2 . . . Scanalyzer 20 | . . 20 . . Insert Component 9 | . . 9 . . Analyze 10 | . . 10 . . Retrieve Study 1 | . . 1 . . Garrison Access Hacks . | . . . . . Unauthorized Hacks . | . . . . . Terminals . | . . . . . Fabricators . | . . . . . Repair Stations . | . . . . . Recycling Units . | . . . . . Scanalyzers . | . . . . . Garrison Access . | . . . . . Data Cores Recovered 1 | . 1 . . . Used . | . . . . . Hacking Detections 10 | . 3 6 1 . Full Trace Events 2 | . . 2 . . Feedback Events . | . . . . . Feedback Blocked . | . . . . . Robot Schematics Acquired . | . . . . . Robots Built . | . . . . . Authchips . | . . . . . Time . | . . . . . Total Robot Build Rating . | . . . . . Part Schematics Acquired 9 | . . 9 . . Parts Built . | . . . . . Authchips . | . . . . . Time . | . . . . . Total Part Build Rating . | . . . . . Part Studies Acquired 1 | . . 1 . . Parts Repaired . | . . . . . Time . | . . . . . Parts Recycled . | . . . . . Recycled Matter . | . . . . . Retrieved Matter . | . . . . . Retrieved Components . | . . . . . Parts Scanalyzed 9 | . . 9 . . Part Schematics Acquired 9 | . . 9 . . Parts Damaged . | . . . . . Bothacking | -11 -10 -9 -8 -8 ------------ Run | Yrd Mat Mat Mat Sto Used RIF Installer . | . . . . . Robots Hacked 3 | . . . 1 2 Non-combat 3 | . . . 1 2 Combat . | . . . . . Robot Hacks Applied 3 | . . . 1 2 parse_system 1 | . . . . 1 no_distress 1 | . . . 1 . check_alert 1 | . . . . 1 Relay Couplers Released . | . . . . . Fabnet Peak Effective % . | . . . . . Robots Rewired . | . . . . . Allies Hacked . | . . . . . Hacks Repelled . | . . . . . Allies | -11 -10 -9 -8 -8 -------- Run | Yrd Mat Mat Mat Sto Total Allies . | . . . . . Largest Group . | . . . . . Highest-Rated Group . | . . . . . Highest-Rated Ally . | . . . . . Total Orders . | . . . . . Ally Attacks . | . . . . . Total Damage . | . . . . . Kills . | . . . . . Allies Corrupted . | . . . . . Allies Melted . | . . . . . Intel | -11 -10 -9 -8 -8 ------- Run | Yrd Mat Mat Mat Sto Active Infowar (turns) 2422 | . . 2051 285 86 Optics 369 | . . . 283 86 Sensors 332 | . . . 282 50 ECM 2411 | . . 2051 285 75 Robot Analysis Total . | . . . . . Derelict Logs Recovered . | . . . . . Drone Launches . | . . . . . Drone Recoveries . | . . . . . Exploration | -11 -10 -9 -8 -8 ------------- Run | Yrd Mat Mat Mat Sto Turns Passed 3316 | 58 744 2065 285 164 Spaces Moved 2002 | 45 589 991 168 209 Core 156 | 13 2 . . 141 Treads . | . . . . . Legs 209 | 32 177 . . . Wheels 580 | . 285 295 . . Hover 1057 | . 125 696 168 68 Flight . | . . . . . Fastest Speed 50 | 50 56 56 56 50 Average Speed 83 | 99 94 81 91 54 Slowest Speed 300 | 120 300 120 120 100 Overloaded Moves . | . . . . . Propulsion Burnouts . | . . . . . Robots Hopped . | . . . . . Potential Cave-ins . | . . . . . Cave-ins Triggered . | . . . . . Exploration Rate (%) 39 | 4 80 56 9 49 Regions Visited 4 Branch Regions 1 Pre-discovered Areas . | . . . . . Known Exits Taken 3 | . 1 1 1 . Unknown Exits Taken 1 | 1 . . . . Scrap Searched . | . . . . . Spaces Dug . | . . . . . Terrain Destroyed . | . . . . . Melee . | . . . . . Projectile . | . . . . . AOE . | . . . . . Terrain Rammed . | . . . . . Walls Destroyed . | . . . . . Machines Disabled . | . . . . . Actions | -11 -10 -9 -8 -8 --------- Run | Yrd Mat Mat Mat Sto Total 3422 | 58 712 2094 299 259 Wait 1089 | . 23 963 91 12 Move 1998 | 44 588 990 167 209 Hop . | . . . . . Pick Up 53 | 8 21 19 4 1 Fast Attach . | . . . . . Attach 28 | 6 8 9 4 1 Detach 3 | . . 1 1 1 Swap 25 | . 11 10 3 1 Drop 26 | . 8 11 2 5 Fire 141 | . 50 91 . . Melee 10 | . 2 . 1 7 Ram 23 | . 1 . . 22 Kick . | . . . . . Crush . | . . . . . Escape Stasis . | . . . . . Rewire . | . . . . . Trap 26 | . . . 26 . Miscellaneous . | . . . . . Route ------- -11/Scrapyard -10/Materials (discovered 4 exits: *Mat x2 / *Min x2) -9/Materials (discovered 3 exits: *Mat / Min x2) -8/Materials -8/Storage History --------- Turn | Location | Event 21 | -11/Scrapyard | Discovered new exit (range 16) 59 | -11/Scrapyard | Entered Materials 69 | -10/Materials | Discovered new exit (range 13) 174 | -10/Materials | Discovered new exit (range 4) 176 | -10/Materials | Identified exit to Materials 267 | -10/Materials | Discovered new exit (range 11) 296 | -10/Materials | Identified exit to Mines 322 | -10/Materials | Build established: Mutant 440 | -10/Materials | Lost 5 parts (1p3n1w) 605 | -10/Materials | Discovered exit to Materials (range 16) 803 | -10/Materials | Entered another Materials area 803 | -9/Materials | Evolved 2 slots: Utility x2 833 | -9/Materials | Build established: Scavenger-Mutant 2076 | -9/Materials | Central database locked down 2353 | -9/Materials | Build established: Mutant 2417 | -9/Materials | Identified exit to Mines 2827 | -9/Materials | Discovered new exit (range 16) 2867 | -9/Materials | Identified exit to Materials 2868 | -9/Materials | Entered another Materials area 2868 | -8/Materials | Evolved 2 slots: Utility x2 2871 | -8/Materials | Discovered new exit (range 15) 2888 | -8/Materials | Identified exit to Storage 3153 | -8/Materials | Entered Storage 3243 | -8/Storage | Core integrity fell below 50% 3270 | -8/Storage | Lost 6 parts (1p2n3u) 3315 | -8/Storage | Core integrity fell below 20% 3317 | -8/Storage | Destroyed by Y-45 Defender with Heavy Assault Rifle Last Messages --------------- 03289_ Acquired Prototype Device. 03292_ Identified Gravity Neutralizer. 03295_ ALERT: Hostiles spotted, dispatching reinforcements to Terminal S014. 03297_ K-01 Serf collects debris. 03299_ Slammed into A-02 Transporter. 03300_ A-02 Transporter suffers critical hit (Burn). 03300_ Slammed into A-02 Transporter. 03304_ System corrupted: Component data lost. 03304_ Slammed into A-02 Transporter. 03305_ Slammed into Y-45 Defender. 03306_ Slammed into A-02 Transporter. 03311_ Slammed into K-01 Serf. 03312_ K-01 Serf sends out distress signal. 03313_ Dropped Heat Sink. 03313_ Slammed into L-31 Rogue. 03315_ Critical hit (Burn: +37). 03315_ Slammed into L-31 Rogue. 03316_ Slammed into G-47 Trooper. Map ----- +----------------------------------------------------+ | ?????????????????????# #?# """" ## ## " | | ?????????????????????# #?# """" ## ## " | | ??????########???????# #?# """" ## ## | | ?????? * ???????# #?# """" ## #### | | ??????? ?????## ### ## ##?? | | ????????"" """ ###### #######"## ### | | ????????"" """ / | | ????????"" """ # | | ??????? # ### #######+## ### | | ?????? ?# #?##+###????????##/##### | | ?????# ?# #? ?????????# | | ?????########??# # """"" ???????# | | ??????# ??# g# """"" #??????# " " "" | | ??????# "?# # """"" #??????# """ "" | | ??????# Y"# # #??????# """ "" | | ??????# ""#ka# """"" #??????# """ | | ??????# / # """"" #??????# """ | | ??????# """ # #????????#??????# [[ | | ??????? """ ## #???????????????######## | | ???????? """ ??#g#########??????????????? | | ????????? ??#gm +????????????? | | ?????????####???#Y#################??????? | | ????????????????# #????????# ! #??????? | | ????????????????#g#????????# [ ] #??????? | | ????????????????#Y#????##### [ #??????? | | ????????????????#@###### # #??????? | | ????????????????#lg! ####+###??????? | | ????????????????#/###### #??# #????????? | | ??????????????? ???## ##??# #????????? | | ??????????????# """ #??# ##### #????????? | | ??????????????# R" #??# #????????? | | ??????????????# """ T#?##/#### #????????? | | ??????????????# ##?#T #??# #????????? | | ??????????????# ??## #??# #????????? | | ??????????????#########??# #??# #????????? | | ?????????????????????????###??# #????????? | | ??????????????????????????????# #????????? | | ??????????????????????????????#+#????????? | | ??????????????????????????????? ?????????? | | ??????????????????????????????? ?????????? | | ???????????????????????????????"?????????? | | ???????????????????????????????"?????????? | | ?????????????????????????????????????????? | | ?????????????????????????????????????????? | | ?????????????????????????????????????????? | | ?????????????????????????????????????????? | | ?????????????????????????????????????????? | | ?????????????????????????????????????????? | | ?????????????????????????????????????????? | | ?????????????????????????????????????????? | +----------------------------------------------------+ Best States ------------- Heat Dissipation 31 Energy Generation 14 Energy Capacity 265 Matter Stores 300 Matter Capacity 300 Sight Range 18 Robot Scan Range 14 Terrain Scan Density 10 ECM Strength 1 Additional Mass Support 6 Evasion (%) 55 Offensive Hacking 10 Authchip Count 1 Item Schematics ----------------- Hover Unit | -9/Materials | Scanalyzed Imp. Hover Unit | -9/Materials | Scanalyzed Transport Network Coupler | -9/Materials | Scanalyzed Weight Redist. System | -9/Materials | Scanalyzed Lgt. Ion Engine | -9/Materials | Scanalyzed ECM Suite | -9/Materials | Scanalyzed Imp. Signal Interpreter | -9/Materials | Scanalyzed Terrain Scanner | -9/Materials | Scanalyzed Lgt. Nuclear Core | -9/Materials | Scanalyzed Robot Schematics ------------------ None Fabricated ------------ Nothing Repaired ---------- Nothing Studied --------- Imp. Hover Unit | -9/Materials | Hacked Alien Tech Used ----------------- None Achievements -------------- None Challenges ------------ None Game ------ Seed RestorationMiningMatter Manual? 0 Play Time 00:51:54 Cumulative 57.9 hours Start 2026.01.11 @ 12:57:37 End 2026.01.11 @ 14:01:05 Sessions 1 Manual Loads 0 Difficulty Rogue Special Mode None Game No. 38 Rogue 38 Adventurer 0 Explorer 0 Win Type - Total 0 Types 0/0/0/0/0/0/0/0/0/0 Lore% 20 Gallery% 34 Achievement% 24 Wizard Run 0 Options --------- Layout 1 ASCII 0 Keyboard 0 Movement Mouse Keybinds 0 Fullscreen 1 Font 32/SmallcapsGlow Map View 50x35 Zoom Use 0% Tactical HUD 1 Map Filters NONE Filters NONE Steam 1 RUN: 7572226c-d702-47f7-8b99-a37e0c3441da